bitfinex/quotes_BTCUSD_20230403
["timestamp","ask_amount","ask_price","bid_price","bid_amount"]
[1680510665995,0.037665,28370.0,28369.0,0.20049071]
[1680510666198,0.037665,28370.0,28369.0,0.20249071]
[1680510666414,0.037665,28370.0,28369.0,0.20067071]
[1680510666630,0.76733997,28370.0,28369.0,0.00067071]
[1680510666863,1.25605193,28370.0,28369.0,0.00049071]
[1680510667084,1.25605193,28370.0,28363.0,0.0219]
[1680510667085,1.71114818,28370.0,28363.0,0.02208]
[1680510667298,0.1488,28368.0,28363.0,0.02208]
[1680510667520,0.030208,28364.0,28363.0,0.02208]
[1680510667737,0.42832333,28367.0,28363.0,0.02208]
[1680510667738,0.029771,28365.0,28363.0,0.039708]
[1680510667967,0.14898,28368.0,28363.0,0.02208]
[1680510667968,0.50377497,28364.0,28363.0,0.02208]
[1680510668228,0.54062297,28364.0,28363.0,0.02408]
[1680510668439,0.91132297,28364.0,28363.0,0.0219]
[1680510668649,0.91132297,28364.0,28363.0,0.03108]
[1680510668866,0.91132297,28364.0,28363.0,0.02208]
[1680510669079,0.94066197,28364.0,28363.0,0.02408]
[1680510669290,0.94066197,28364.0,28363.0,0.0219]
[1680510669566,0.92366197,28364.0,28363.0,0.0219]
[1680510669987,0.92316197,28364.0,28363.0,0.0219]
[1680510670404,1.47984124,28364.0,28363.0,0.0239]
[1680510670632,1.69018457,28364.0,28363.0,0.0239]
[1680510671321,1.08252297,28364.0,28363.0,0.0239]
[1680510671524,1.09486197,28364.0,28363.0,0.0239]
[1680510671742,0.189387,28364.0,28363.0,0.0219]
[1680510671963,0.23667927,28370.0,28367.0,0.7707]
[1680510672212,0.06244047,28385.0,28371.0,0.4]
[1680510672213,0.00018,28372.0,28371.0,0.4]
[1680510672422,0.14391091,28381.0,28371.0,0.4]
[1680510672423,0.14391091,28381.0,28371.0,0.94090284]
[1680510672657,0.14391091,28381.0,28378.0,0.2]
[1680510672658,0.35497497,28380.0,28378.0,0.2]
[1680510672883,0.87317497,28380.0,28379.0,0.14197487]
[1680510673093,0.88820397,28380.0,28379.0,0.14215487]
[1680510673328,0.88820397,28380.0,28379.0,0.00018]
[1680510673550,0.89920397,28380.0,28378.0,0.20218]
[1680510673766,0.485268,28379.0,28378.0,0.20018]
[1680510673987,0.74024297,28379.0,28378.0,0.00018]
[1680510674210,0.74024297,28379.0,28375.0,0.2]
[1680510674211,0.92877597,28379.0,28375.0,0.2]
[1680510674427,0.1488,28377.0,28375.0,0.20018]
[1680510674660,0.014884,28376.0,28375.0,0.20018]
[1680510675087,0.014884,28376.0,28375.0,0.20218]
[1680510675300,0.014884,28376.0,28375.0,0.219801]
[1680510675720,0.014884,28376.0,28375.0,0.20218]
[1680510676006,0.014884,28376.0,28375.0,0.20018]
[1680510676202,0.025884,28376.0,28375.0,0.20218]
[1680510676409,0.394084,28376.0,28375.0,0.20018]
[1680510676646,0.00018,28380.0,28379.0,0.2]
[1680510676870,0.14391091,28381.0,28379.0,0.34197487]
[1680510677094,0.00018,28385.0,28380.0,0.14197487]
[1680510677314,0.36948697,28385.0,28382.0,0.2]
[1680510677534,0.014568,28384.0,28382.0,0.35959087]
[1680510677738,0.014568,28384.0,28382.0,0.2]
[1680510677956,0.1475,28386.0,28382.0,0.217736]
[1680510678170,0.1475,28386.0,28382.0,0.35977087]
[1680510678394,0.1475,28386.0,28382.0,0.00018]
[1680510678609,0.1475,28386.0,28379.0,0.001]
[1680510678610,0.1475,28386.0,28384.0,0.2]
[1680510678819,0.014264,28385.0,28384.0,0.2]
[1680510679036,0.73993897,28385.0,28384.0,0.20018]
[1680510679728,0.73993897,28385.0,28384.0,0.00018]
[1680510679729,0.75226897,28385.0,28384.0,0.00018]
[1680510679966,2.13023771,28385.0,28384.0,0.002]
[1680510680196,2.43023771,28385.0,28384.0,0.002]
[1680510680627,2.42873771,28385.0,28377.0,0.2]
[1680510680850,0.3707,28379.0,28377.0,0.2]
[1680510681082,0.74834497,28378.0,28377.0,0.20018]
[1680510681290,0.38487,28378.0,28377.0,0.20018]
[1680510681502,0.39337,28378.0,28377.0,0.20018]
[1680510681929,0.39337,28378.0,28377.0,0.20064635]
[1680510682137,0.39337,28378.0,28377.0,0.20264635]
[1680510682366,0.39337,28378.0,28377.0,0.20064635]
[1680510682574,0.42037,28378.0,28377.0,0.20064635]
[1680510682791,0.02267,28378.0,28377.0,0.20064635]
[1680510683005,0.0355,28378.0,28377.0,0.21826535]
[1680510683225,0.03098,28381.0,28377.0,0.21826535]
[1680510683433,0.03098,28381.0,28377.0,0.36024022]
[1680510683682,0.027,28378.0,28377.0,0.36024022]
[1680510683890,0.03098,28381.0,28377.0,0.21826535]
[1680510684109,0.03098,28381.0,28377.0,0.01826535]
[1680510684325,0.03098,28381.0,28380.0,0.2]
[1680510684536,0.054508,28381.0,28380.0,0.20018]
[1680510684996,0.78018297,28381.0,28380.0,0.20018]
[1680510685425,0.79618297,28381.0,28380.0,0.20018]
[1680510685634,0.78018297,28381.0,28380.0,0.20018]
[1680510685851,0.82084697,28381.0,28380.0,0.00018]
[1680510686058,0.79251497,28381.0,28375.0,0.00018]
[1680510686305,0.79251497,28381.0,28376.0,0.2]
[1680510686306,0.17619,28378.0,28376.0,0.2]
[1680510686509,0.17619,28378.0,28376.0,0.00018]
[1680510686510,0.74031997,28377.0,28376.0,0.00018]
[1680510686718,0.74031997,28377.0,28366.0,0.349552]
[1680510686719,1.06115297,28377.0,28375.0,0.2]
[1680510686934,0.684557,28376.0,28375.0,0.20018]
[1680510687154,1.61422353,28376.0,28375.0,0.00018]
[1680510687393,1.61422353,28376.0,28362.0,0.239529]
[1680510687394,2.80923726,28376.0,28371.0,0.00018]
[1680510687639,2.80923726,28376.0,28366.0,0.2]
[1680510687640,0.3707,28371.0,28368.0,0.00018]
[1680510687867,0.3707,28369.0,28368.0,0.00018]
[1680510688075,1.03417497,28369.0,28368.0,0.00018]
[1680510688988,0.3085,28369.0,28368.0,0.00018]
[1680510689209,0.3355,28369.0,28368.0,0.00018]
[1680510689424,0.3355,28369.0,28366.0,0.19518]
[1680510689636,0.03568,28369.0,28368.0,0.017625]
[1680510689873,0.0355,28369.0,28368.0,0.017625]
[1680510690280,0.027,28369.0,28368.0,0.052875]
[1680510690496,0.00018,28375.0,28368.0,0.052875]
[1680510690710,1.26824655,28379.0,28373.0,0.19506]
[1680510690931,0.1,28377.0,28374.0,0.14197487]
[1680510691181,0.1,28376.0,28374.0,0.06570393]
[1680510691417,0.00018,28377.0,28374.0,0.06570393]
[1680510691625,0.003,28379.0,28376.0,0.15128286]
[1680510691843,0.00018,28379.0,28376.0,0.21698679]
[1680510692069,0.043312,28381.0,28376.0,0.21698679]
[1680510692070,1.26810955,28380.0,28376.0,0.15128286]
[1680510692299,1.26828955,28380.0,28376.0,0.21698679]
[1680510692516,0.00018,28380.0,28376.0,0.16890286]
[1680510692731,0.03098,28381.0,28379.0,0.15128286]
[1680510692732,0.03116,28381.0,28379.0,0.15128286]
[1680510692950,0.03098,28381.0,28379.0,0.15128286]
[1680510693161,0.03098,28381.0,28379.0,0.16890086]
[1680510693373,0.03098,28381.0,28379.0,0.15128286]
[1680510693593,0.03098,28381.0,28379.0,0.16890086]
[1680510693823,0.05398,28381.0,28379.0,0.16890086]
[1680510694285,0.03098,28381.0,28379.0,0.16890086]
[1680510694498,0.05398,28381.0,28379.0,0.16890086]
[1680510694709,0.03098,28381.0,28379.0,0.16890086]
[1680510694987,0.03098,28381.0,28380.0,0.35497497]
[1680510694988,0.05398,28381.0,28380.0,0.35497497]
[1680510695419,0.05398,28381.0,28380.0,0.40782897]
[1680510696052,0.05398,28381.0,28380.0,0.50782897]
[1680510696286,0.05398,28381.0,28380.0,0.50800897]
[1680510696287,0.03098,28381.0,28380.0,0.50800897]
[1680510696525,0.03398,28381.0,28380.0,0.41500897]
[1680510696718,0.03098,28381.0,28380.0,0.40800897]
[1680510696932,0.03398,28381.0,28380.0,0.41500897]
[1680510699133,0.03398,28381.0,28380.0,0.41373248]
[1680510700658,0.03098,28381.0,28380.0,0.40673248]
[1680510700878,0.03098,28381.0,28380.0,0.41373248]
[1680510700879,0.03298,28381.0,28380.0,0.41373248]
[1680510702216,0.00478,28381.0,28380.0,0.41373248]
[1680510702438,0.00478,28381.0,28380.0,1.26333248]
[1680510702871,0.00478,28381.0,28380.0,0.89263248]
[1680510703996,8e-05,28381.0,28380.0,1.26333248]
[1680510704441,8e-05,28381.0,28380.0,1.54003248]
[1680510704654,8e-05,28381.0,28380.0,1.16933248]
[1680510704876,8e-05,28381.0,28380.0,0.538754]
[1680510705101,8e-05,28381.0,28380.0,0.89372897]
[1680510705311,0.0005,28389.0,28382.0,0.2]
[1680510705520,0.0005,28389.0,28388.0,0.15128286]
[1680510705731,0.00918,28389.0,28388.0,0.21698679]
[1680510705955,0.00918,28389.0,28388.0,0.15128286]
[1680510706625,0.01618,28389.0,28388.0,0.15328286]
[1680510706870,0.00918,28389.0,28388.0,0.15128286]
[1680510707083,0.01618,28389.0,28388.0,0.15328286]
[1680510707294,0.00918,28389.0,28388.0,0.15128286]
[1680510708442,0.01618,28389.0,28388.0,0.15328286]
[1680510708647,0.00918,28389.0,28388.0,0.15128286]
[1680510708869,0.00918,28389.0,28388.0,0.15328286]
[1680510708870,0.01618,28389.0,28388.0,0.15328286]
[1680510709083,0.00068,28389.0,28388.0,0.16889586]
[1680510709294,0.0075,28389.0,28388.0,0.17089586]
[1680510709740,0.0005,28389.0,28388.0,0.16389586]
[1680510709959,0.0075,28389.0,28388.0,0.16589586]
[1680510710168,0.0005,28389.0,28388.0,0.16389586]
[1680510710385,0.0005,28389.0,28388.0,0.19089586]
[1680510710386,0.0015,28389.0,28388.0,0.19089586]
[1680510710655,0.01,28389.0,28388.0,0.19089586]
[1680510711494,0.01,28389.0,28387.0,0.00018]
[1680510711495,0.009,28389.0,28387.0,0.00018]
[1680510711710,0.016,28389.0,28388.0,0.14828286]
[1680510711970,0.016,28389.0,28388.0,0.002]
[1680510712184,0.75400297,28389.0,28388.0,0.002]
[1680510712413,0.75400297,28389.0,28375.0,0.070483]
[1680510712414,0.74700297,28389.0,28378.0,0.035418]
[1680510712638,0.3707,28387.0,28381.0,0.017617]
[1680510712856,0.15047487,28386.0,28381.0,0.017617]
[1680510713080,0.15047487,28386.0,28385.0,0.14628286]
[1680510713305,0.52049733,28386.0,28382.0,0.00018]
[1680510713528,0.52049733,28386.0,28381.0,0.02]
[1680510713529,0.277,28383.0,28381.0,0.02]
[1680510713748,1.03417497,28382.0,28381.0,0.02]
[1680510714450,1.03417497,28382.0,28380.0,0.14628286]
[1680510714626,0.1,28381.0,28380.0,0.14628286]
[1680510714834,0.35497497,28381.0,28380.0,0.14628286]
[1680510715052,0.01868,28382.0,28381.0,0.001]
[1680510715267,0.01868,28382.0,28380.0,0.14628286]
[1680510715268,0.0085,28382.0,28380.0,0.14628286]
[1680510715479,0.01,28381.0,28380.0,0.14728286]
[1680510715726,0.01,28381.0,28380.0,0.16389986]
[1680510715727,0.0085,28381.0,28380.0,0.16389986]
[1680510716179,0.37088,28387.0,28380.0,0.16389986]
[1680510716180,0.00018,28387.0,28380.0,0.16389986]
[1680510716403,0.00018,28388.0,28381.0,0.06570393]
[1680510716625,0.0005,28389.0,28382.0,0.017616]
[1680510716836,0.35547497,28389.0,28386.0,0.14628286]
[1680510717058,0.35547497,28389.0,28387.0,0.06570393]
[1680510717059,0.3,28388.0,28387.0,0.06570393]
[1680510717287,0.3,28388.0,28386.0,0.14628286]
[1680510717288,0.00018,28388.0,28386.0,0.14628286]
[1680510717490,0.0005,28389.0,28386.0,0.14628286]
[1680510717491,0.00068,28389.0,28386.0,0.14628286]
[1680510717700,0.01768,28389.0,28386.0,0.21298679]
[1680510717916,0.0175,28389.0,28386.0,0.14728286]
[1680510718129,0.0175,28389.0,28386.0,0.14628286]
[1680510718130,0.012828,28389.0,28386.0,0.14628286]
[1680510718352,0.0005,28389.0,28386.0,0.14628286]
[1680510718575,0.72567497,28388.0,28386.0,0.14628286]
[1680510718783,0.72567497,28388.0,28386.0,0.14728286]
[1680510719207,0.72567497,28388.0,28383.0,0.00012]
[1680510719208,0.73800397,28388.0,28383.0,0.00012]
[1680510719427,0.17615,28384.0,28380.0,0.14628286]
[1680510719674,0.17615,28384.0,28380.0,0.16389986]
[1680510719675,0.0085,28383.0,28380.0,0.16389986]
[1680510719887,0.0085,28383.0,28381.0,0.00061273]
[1680510720314,0.35497497,28388.0,28382.0,0.017616]
[1680510720526,0.35497497,28388.0,28383.0,0.14628286]
[1680510720737,0.0085,28387.0,28383.0,0.06570393]
[1680510721013,0.0085,28387.0,28384.0,0.14628286]
[1680510721222,0.0085,28387.0,28385.0,0.14628286]
[1680510722073,0.004,28387.0,28386.0,0.14628286]
[1680510722512,0.004,28387.0,28386.0,0.22960079]
[1680510722724,0.004,28387.0,28386.0,0.16389686]
[1680510722939,0.0005,28389.0,28387.0,0.2]
[1680510723153,0.0005,28389.0,28386.0,0.16450857]
[1680510723372,0.0005,28389.0,28386.0,0.14689457]
[1680510723612,0.002,28387.0,28386.0,0.16089457]
[1680510723829,0.0005,28389.0,28386.0,0.16450857]
[1680510724042,0.0025,28389.0,28386.0,0.17850857]
[1680510724245,0.0025,28389.0,28386.0,0.16089457]
[1680510724453,0.0005,28389.0,28386.0,0.14689457]
[1680510724675,0.0005,28389.0,28386.0,0.17850857]
[1680510724676,0.001,28387.0,28386.0,0.17850857]
[1680510724889,0.009,28389.0,28386.0,0.16450857]
[1680510726412,0.01,28389.0,28386.0,0.17850857]
[1680510727716,0.01,28389.0,28386.0,0.17860857]
[1680510728565,0.01,28389.0,28386.0,0.16099457]
[1680510729017,0.01,28389.0,28386.0,0.17860757]
[1680510729454,0.0098505,28389.0,28386.0,0.17860757]
[1680510729669,0.0088505,28389.0,28386.0,0.16460757]
[1680510729882,0.0088505,28389.0,28386.0,0.16760757]
[1680510730336,0.73452547,28389.0,28386.0,0.00371171]
[1680510730548,0.87650034,28389.0,28386.0,0.00071171]
[1680510730763,0.87650034,28389.0,28386.0,0.00371171]
[1680510730764,0.73452547,28389.0,28386.0,0.00371171]
[1680510731188,0.72567497,28388.0,28386.0,0.00071171]
[1680510731451,0.0085,28387.0,28386.0,0.00071171]
[1680510731877,0.0043505,28389.0,28386.0,0.00071171]
[1680510731878,0.0085,28388.0,28386.0,0.00071171]
[1680510732086,0.36347497,28388.0,28386.0,0.00071171]
[1680510732527,0.017,28387.0,28386.0,0.14799457]
[1680510732785,0.0085,28387.0,28386.0,0.14699457]
[1680510733001,0.0085,28388.0,28386.0,0.16460857]
[1680510733002,0.004,28388.0,28386.0,0.16460857]
[1680510733224,0.0003505,28389.0,28386.0,0.16460857]
[1680510733645,0.017,28387.0,28386.0,0.16560857]
[1680510733863,0.0003505,28389.0,28386.0,0.16460857]
[1680510734129,0.0003505,28389.0,28386.0,0.16760857]
[1680510734558,0.0003505,28389.0,28386.0,0.14999457]
[1680510734559,0.0088505,28389.0,28386.0,0.14999457]
[1680510734987,0.0088505,28389.0,28386.0,0.14699457]
[1680510735201,0.017,28387.0,28386.0,0.14799457]
[1680510735434,0.0085,28387.0,28386.0,0.14699457]
[1680510735862,0.0003505,28389.0,28386.0,0.14999457]
[1680510735863,0.0088505,28389.0,28386.0,0.14999457]
[1680510736069,0.0088505,28389.0,28386.0,0.14699457]
[1680510736287,0.017,28387.0,28386.0,0.14799457]
[1680510736516,0.0085,28387.0,28386.0,0.14699457]
[1680510736737,0.0085,28387.0,28386.0,0.16760857]
[1680510736943,0.0085,28387.0,28386.0,0.14999457]
[1680510737157,0.0003505,28389.0,28386.0,0.14999457]
[1680510737158,0.0088505,28389.0,28386.0,0.14999457]
[1680510737382,0.72567497,28388.0,28386.0,0.14999457]
[1680510737596,0.0085,28387.0,28386.0,0.14999457]
[1680510737837,0.0085,28387.0,28386.0,0.12401071]
[1680510738076,0.0255,28387.0,28386.0,0.27129357]
[1680510738284,0.0085,28387.0,28386.0,0.27047357]
[1680510738490,0.00838687,28387.0,28386.0,0.16760857]
[1680510738699,0.0088505,28389.0,28386.0,0.16460857]
[1680510738917,0.017,28387.0,28386.0,0.16560857]
[1680510739361,0.0003505,28389.0,28386.0,0.16460857]
[1680510739565,0.0003505,28389.0,28386.0,0.14999457]
[1680510739770,0.0003505,28389.0,28386.0,0.14699457]
[1680510739996,0.0003505,28389.0,28387.0,0.017613]
[1680510740938,0.0003505,28389.0,28388.0,0.35497497]
[1680510741159,0.0173505,28389.0,28388.0,0.37258797]
[1680510741378,0.0003505,28389.0,28386.0,0.14656286]
[1680510741607,0.0003505,28389.0,28387.0,0.003]
[1680510741818,0.0003505,28389.0,28386.0,0.14638286]
[1680510742038,0.0003505,28389.0,28386.0,0.16399686]
[1680510742262,0.0013505,28389.0,28388.0,0.014]
[1680510742477,0.0003505,28389.0,28387.0,0.017613]
[1680510742906,0.0003505,28389.0,28387.0,0.020613]
[1680510743754,0.0003505,28389.0,28387.0,0.37258797]
[1680510743963,0.0013505,28389.0,28387.0,0.38658797]
[1680510744172,0.0003505,28389.0,28387.0,0.37258797]
[1680510744394,0.0003505,28389.0,28387.0,0.37558797]
[1680510744820,0.0003505,28389.0,28388.0,0.72567497]
[1680510745041,0.0003505,28389.0,28388.0,0.94955486]
[1680510745042,0.0013505,28389.0,28388.0,0.94955486]
[1680510745263,0.0003505,28389.0,28388.0,0.94955486]
[1680510745477,0.0242,28390.0,28389.0,0.1]
[1680510745713,0.0242,28390.0,28389.0,0.98956983]
[1680510746350,0.0242,28390.0,28389.0,0.16389486]
[1680510747296,0.0242,28390.0,28389.0,0.18089486]
[1680510747297,0.0262,28390.0,28389.0,0.18089486]
[1680510747722,0.0262,28390.0,28389.0,0.53586983]
[1680510747926,0.0262,28390.0,28389.0,0.35701886]
[1680510748179,0.0242,28390.0,28389.0,0.34001886]
[1680510748370,0.0262,28390.0,28389.0,0.35701886]
[1680510748574,0.0262,28390.0,28389.0,0.53586983]
[1680510748984,0.0262,28390.0,28389.0,0.53645789]
[1680510749425,0.0262,28390.0,28389.0,1.15595789]
[1680510750926,0.0242,28390.0,28389.0,1.13758689]
[1680510751359,0.0242,28390.0,28389.0,1.10958689]
[1680510751571,0.0242,28390.0,28389.0,1.13758689]
[1680510751803,0.0242,28390.0,28389.0,1.10958689]
[1680510753154,0.0242,28390.0,28389.0,1.13758689]
[1680510753396,0.0242,28390.0,28389.0,1.10958689]
[1680510753621,0.0242,28390.0,28389.0,1.13758689]
[1680510753845,0.0242,28390.0,28389.0,1.10958689]
[1680510754065,0.0242,28390.0,28389.0,1.13758689]
[1680510754278,0.0242,28390.0,28389.0,1.10958689]
[1680510754498,0.0242,28390.0,28389.0,1.13758689]
[1680510754940,0.0242,28390.0,28389.0,1.10958689]
[1680510755158,0.0242,28390.0,28389.0,1.13758689]
[1680510755377,0.0242,28390.0,28389.0,1.10958689]
[1680510756234,0.0242,28390.0,28389.0,1.20958689]
[1680510756901,0.0242,28390.0,28389.0,1.23758689]
[1680510757118,0.0242,28390.0,28389.0,1.26128303]
[1680510757312,0.0242,28390.0,28389.0,1.28928303]
[1680510757510,0.0242,28390.0,28389.0,1.26128303]
[1680510758319,0.0242,28390.0,28389.0,1.18928303]
[1680510758778,0.0242,28390.0,28389.0,1.28928303]
[1680510759219,0.0242,28390.0,28389.0,1.16128303]
[1680510759470,0.0242,28390.0,28389.0,1.18928303]
[1680510759703,0.0242,28390.0,28389.0,1.16128303]
[1680510759919,0.0242,28390.0,28389.0,1.28928303]
[1680510760797,0.0242,28390.0,28389.0,1.18410303]
[1680510761046,0.0242,28390.0,28389.0,1.28410303]
[1680510761262,0.0242,28390.0,28389.0,1.18410303]
[1680510762136,0.02413093,28390.0,28389.0,1.18410303]
[1680510762367,0.02413093,28390.0,28389.0,0.81340303]
[1680510762583,0.1661058,28390.0,28389.0,0.30962806]
[1680510762801,0.02413093,28390.0,28389.0,0.30962806]
[1680510763278,0.02406379,28390.0,28389.0,0.30962806]
[1680510763716,0.02406379,28390.0,28389.0,1.03530303]
[1680510764155,0.02399696,28390.0,28389.0,1.03530303]
[1680510764605,0.0005,28395.0,28394.0,0.14128286]
[1680510764832,0.0005,28395.0,28394.0,0.68522576]
[1680510765052,0.0005,28395.0,28394.0,0.61952183]
[1680510765291,0.0242,28398.0,28394.0,1.0146429]
[1680510765519,0.0242,28398.0,28397.0,0.3707]
[1680510765749,0.0242,28398.0,28397.0,0.84892497]
[1680510767099,0.0242,28398.0,28397.0,0.87692497]
[1680510767525,0.02426,28398.0,28397.0,0.87692497]
[1680510768181,0.02426,28398.0,28397.0,1.07692497]
[1680510768416,0.02426,28398.0,28397.0,1.07710497]
[1680510769314,0.02426,28398.0,28397.0,0.70640497]
[1680510769756,0.02426,28398.0,28397.0,1.03055397]
[1680510769975,0.02426,28398.0,28397.0,1.05855397]
[1680510770183,0.02426,28398.0,28397.0,1.0312169]
[1680510770394,0.0242,28398.0,28397.0,1.4016769]
[1680510770616,0.0242,28398.0,28397.0,1.0775279]
[1680510770888,0.0242,28398.0,28397.0,0.4788279]
[1680510771089,0.0242,28398.0,28397.0,0.5068279]
[1680510771313,0.02413371,28398.0,28397.0,0.5068279]
[1680510771538,0.02413371,28398.0,28397.0,0.8775279]
[1680510771969,0.02413371,28398.0,28397.0,0.5068279]
[1680510772247,0.02412772,28398.0,28397.0,0.5068279]
[1680510772470,0.02412772,28398.0,28397.0,0.08148393]
[1680510772691,0.02412772,28398.0,28397.0,0.02866293]
[1680510772916,0.02412772,28398.0,28397.0,0.04626993]
[1680510773349,0.02412772,28398.0,28397.0,0.01826993]
[1680510773577,0.02418772,28398.0,28397.0,0.04626993]
[1680510773794,0.02418772,28398.0,28397.0,0.00066293]
[1680510774008,0.02418772,28398.0,28397.0,0.02526993]
[1680510774227,0.02418772,28398.0,28397.0,0.024607]
[1680510774455,0.02424772,28398.0,28397.0,0.024607]
[1680510774899,0.02424772,28398.0,28397.0,0.89908197]
[1680510775347,0.02424772,28398.0,28397.0,1.09972306]
[1680510775789,0.02424772,28398.0,28397.0,1.09272306]
[1680510776022,0.02424772,28398.0,28397.0,1.12072306]
[1680510776245,0.02418362,28398.0,28397.0,1.09272306]
[1680510776456,0.02418362,28398.0,28397.0,1.12072306]
[1680510776894,0.02418362,28398.0,28397.0,1.47287206]
[1680510777131,0.02418362,28398.0,28397.0,1.52662026]
[1680510778173,0.02411984,28398.0,28397.0,1.52662026]
[1680510778407,0.02405984,28398.0,28397.0,1.52656026]
[1680510779300,0.02399635,28398.0,28397.0,1.52656026]
[1680510780196,0.02393316,28398.0,28397.0,1.52656026]
[1680510780862,0.02393316,28398.0,28397.0,1.52650026]
[1680510780863,0.02387316,28398.0,28397.0,1.52650026]
[1680510781313,0.02381025,28398.0,28397.0,1.52650026]
[1680510782214,0.02374763,28398.0,28397.0,1.52650026]
[1680510782873,0.02374763,28398.0,28397.0,1.49850026]
[1680510783089,0.02374763,28398.0,28397.0,1.52650026]
[1680510783321,0.0236853,28398.0,28397.0,1.52650026]
[1680510783536,0.0242,28399.0,28398.0,0.4707]
[1680510783757,0.0242,28399.0,28398.0,0.87849397]
[1680510784196,0.0192,28399.0,28398.0,0.87849397]
[1680510784645,0.0192,28399.0,28398.0,0.90649397]
[1680510785357,0.01913798,28399.0,28398.0,0.87849397]
[1680510785571,0.01913798,28399.0,28398.0,0.90649397]
[1680510785792,0.01903798,28399.0,28398.0,0.87849397]
[1680510786009,0.01903798,28399.0,28398.0,0.90649397]
[1680510786227,0.01887624,28399.0,28398.0,0.90711144]
[1680510786443,0.01877624,28399.0,28398.0,0.87911144]
[1680510786672,0.0242,28401.0,28400.0,0.2]
[1680510786673,0.01541236,28401.0,28400.0,0.2]
[1680510786893,0.32409,28414.0,28405.0,0.5707]
[1680510786894,0.02409,28414.0,28405.0,0.5707]
[1680510787093,0.00018,28412.0,28405.0,1.7914709]
[1680510787557,0.00018,28413.0,28405.0,1.72576697]
[1680510787798,0.00018,28413.0,28405.0,1.75376697]
[1680510788047,0.02427,28414.0,28405.0,1.72576697]
[1680510788276,0.02413873,28406.0,28405.0,1.75376697]
[1680510788508,0.02413873,28406.0,28405.0,1.74363346]
[1680510788745,0.02413873,28406.0,28405.0,1.75376697]
[1680510789166,0.02413873,28406.0,28405.0,1.72576697]
[1680510789392,0.02417784,28407.0,28406.0,0.4707]
[1680510789628,0.02427,28414.0,28408.0,1.2207]
[1680510789860,0.02427,28414.0,28413.0,0.72567497]
[1680510789861,0.02409,28414.0,28413.0,0.72567497]
[1680510790076,0.02409,28414.0,28413.0,1.4424869]
[1680510790513,0.02409,28414.0,28413.0,1.37678297]
[1680510791193,0.02409,28414.0,28413.0,1.40478297]
[1680510791451,0.02409,28414.0,28413.0,1.37678297]
[1680510791679,0.02409,28414.0,28413.0,1.40478297]
[1680510791915,0.02409,28414.0,28413.0,1.37678297]
[1680510792138,0.02409,28417.0,28413.0,1.55358297]
[1680510792404,0.02409,28417.0,28415.0,0.3707]
[1680510792634,0.02409,28417.0,28416.0,0.77846097]
[1680510793564,0.02409,28417.0,28413.0,6e-05]
[1680510793565,0.2,28415.0,28413.0,6e-05]
[1680510793787,0.2,28407.0,28401.0,0.00018]
[1680510794016,0.2,28407.0,28403.0,0.052809]
[1680510794017,0.14197487,28406.0,28403.0,0.052809]
[1680510794243,0.14197487,28406.0,28404.0,0.35497497]
[1680510794485,0.14197487,28406.0,28405.0,0.017602]
[1680510794705,0.00018,28406.0,28405.0,0.74327697]
[1680510794944,0.20018,28407.0,28403.0,0.00018]
[1680510795158,0.2,28407.0,28405.0,0.017602]
[1680510795412,0.20018,28407.0,28405.0,0.052807]
[1680510795641,0.00018,28408.0,28406.0,0.72567497]
[1680510795883,0.00018,28410.0,28407.0,0.493908]
[1680510796116,0.00018,28410.0,28408.0,0.72567497]
[1680510796339,0.00018,28410.0,28409.0,0.0528]
[1680510796579,0.20018,28411.0,28409.0,0.37257497]
[1680510796808,0.20018,28411.0,28410.0,0.35497497]
[1680510797001,0.20018,28411.0,28410.0,0.40777197]
[1680510797252,0.20018,28411.0,28410.0,0.017599]
[1680510797470,0.2,28411.0,28410.0,0.017599]
[1680510797751,0.2,28411.0,28405.0,0.441109]
[1680510797975,0.14197487,28410.0,28408.0,0.0176]
[1680510798197,0.20218,28411.0,28408.0,0.0176]
[1680510798427,0.20018,28411.0,28408.0,0.0176]
[1680510798647,0.20018,28411.0,28410.0,0.026]
[1680510798870,0.2,28411.0,28407.0,0.035202]
[1680510799088,0.2,28411.0,28410.0,0.37257397]
[1680510799313,0.20018,28411.0,28410.0,0.017599]
[1680510799537,0.2,28411.0,28410.0,0.017599]
[1680510799794,0.19506,28411.0,28410.0,0.017599]
[1680510800012,0.195,28411.0,28410.0,0.017599]
[1680510800275,0.195,28411.0,28410.0,0.026]
[1680510800467,0.195,28411.0,28410.0,0.017599]
[1680510800685,0.195,28411.0,28410.0,0.043599]
[1680510800906,0.19518,28413.0,28410.0,0.47816897]
[1680510801131,0.69194984,28413.0,28410.0,6e-05]
[1680510801351,0.35497497,28412.0,28410.0,0.02]
[1680510801569,0.195,28411.0,28403.0,0.070532]
[1680510801792,0.14197487,28411.0,28410.0,0.043599]
[1680510802008,0.14197487,28411.0,28410.0,0.484696]
[1680510802009,6e-05,28411.0,28410.0,0.484696]
[1680510802680,0.02409,28417.0,28414.0,0.2]
[1680510802938,0.02409,28417.0,28416.0,0.005]
[1680510803157,0.01909,28417.0,28416.0,0.022595]
[1680510804506,0.01909,28417.0,28416.0,0.421295]
[1680510806459,0.01909,28417.0,28416.0,0.570095]
[1680510806679,0.01909,28417.0,28416.0,0.94293646]
[1680510806932,0.01909,28417.0,28416.0,1.04293646]
[1680510807149,0.01909,28417.0,28416.0,1.01493646]
[1680510807381,0.0024624,28428.0,28424.0,0.005]
[1680510807623,0.0342,28431.0,28428.0,0.3757]
[1680510807624,0.03438,28431.0,28428.0,0.3757]
[1680510807859,0.03438,28431.0,28428.0,0.9194959]
[1680510807860,0.0342,28431.0,28428.0,0.9194959]
[1680510808081,0.05878809,28440.0,28432.0,0.14121191]
[1680510808319,0.02365858,28450.0,28432.0,0.14121191]
[1680510808320,0.17575,28449.0,28443.0,0.35]
[1680510808551,0.4827186,28454.0,28446.0,0.3707]
[1680510808777,1.6199262,28453.0,28447.0,0.06570393]
[1680510809007,1.26495123,28452.0,28447.0,0.06588393]
[1680510809231,0.4827186,28446.0,28444.0,0.017577]
[1680510809458,0.1,28442.0,28440.0,0.00012]
[1680510809687,0.1,28442.0,28436.0,6e-05]
[1680510809688,0.4827186,28439.0,28436.0,6e-05]